bitfinex-derivatives/quotes_ETHF0:USTF0_20251031
["timestamp","ask_amount","ask_price","bid_price","bid_amount"]
[1761943379846,0.2206,3880.0,3879.9,3.67197]
[1761943382648,0.2206,3880.0,3879.9,3.90067]
[1761943385041,0.2206,3880.0,3879.9,3.2078]
[1761943385042,0.3557,3880.0,3879.9,3.2078]
[1761943385361,0.2206,3879.7,3879.5,0.60001]
[1761943385646,0.2206,3879.6,3879.5,0.46421]
[1761943386247,0.2206,3879.6,3879.5,0.69291]
[1761943386451,0.2206,3879.9,3879.8,0.46418]
[1761943386641,0.30121705,3879.9,3879.8,0.46418]
[1761943387051,0.30121705,3879.9,3879.7,0.46419]
[1761943387052,0.85204921,3879.9,3879.7,0.46419]
[1761943387242,0.63144921,3879.8,3879.7,0.46419]
[1761943387443,0.85204921,3879.8,3879.7,0.46419]
[1761943387853,0.85204921,3879.8,3879.6,0.46419]
[1761943388150,0.08061705,3879.7,3879.6,0.69289]
[1761943388456,0.30121705,3879.7,3879.6,0.69289]
[1761943388656,0.2206,3879.6,3879.4,3.2078]
[1761943388849,0.2206,3879.5,3879.4,3.2078]
[1761943389052,0.2206,3879.5,3879.4,3.4365]
[1761943389955,0.2206,3879.5,3879.4,3.2078]
[1761943390147,0.98720798,3879.5,3879.4,3.2078]
[1761943390350,0.128,3879.0,3878.2,4.59396484]
[1761943390656,0.2195,3878.3,3878.2,3.2078]
[1761943390850,0.2195,3878.3,3878.2,3.4386]
[1761943391153,0.2195,3878.3,3878.2,3.2078]
[1761943391353,0.22180055,3878.3,3878.2,3.20975483]
[1761943391948,0.22180055,3878.3,3878.2,0.00195483]
[1761943395459,3.42960055,3878.3,3878.2,0.00195483]
[1761943395653,3.97842358,3878.3,3878.2,0.00195483]
[1761943396051,3.51026014,3878.3,3878.2,0.00195483]
[1761943396255,3.42960055,3878.3,3878.2,0.00195483]
[1761943398355,3.97761307,3878.3,3878.2,0.00195483]
[1761943399164,3.42960055,3878.3,3878.2,0.00195483]
[1761943400159,3.21010055,3878.3,3877.4,3.2078]
[1761943400458,3.21010055,3878.3,3876.4,0.42007559]
[1761943400459,0.3643,3877.0,3876.5,0.59319]
[1761943400657,0.3643,3877.0,3876.5,0.1286]
[1761943400855,0.3643,3877.0,3876.7,0.46456]
[1761943401055,0.3643,3877.0,3876.6,0.46457]
[1761943401256,0.3643,3877.0,3876.6,0.4679056]
[1761943401463,0.3643,3877.0,3876.6,0.0033356]
[1761943402667,0.2292,3876.7,3876.6,0.0033356]
[1761943410169,0.3539,3876.5,3876.4,0.42007559]
[1761943410474,0.3539,3876.5,3875.5,0.1315]
[1761943410475,0.2292,3875.6,3875.5,0.59619]
[1761943411076,0.2292,3875.6,3875.5,0.1315]
[1761943411279,3.2078,3876.1,3876.0,0.1315]
[1761943411673,3.437,3876.1,3876.0,0.1315]
[1761943413380,3.437,3876.1,3875.6,0.46469]
[1761943414885,3.437,3876.1,3875.5,0.59880468]
[1761943415377,3.2078,3876.5,3876.0,0.3618]
[1761943415586,0.08069917,3876.4,3876.0,0.3618]
[1761943415887,0.2292,3876.1,3876.0,0.3618]
[1761943417880,3.2078,3876.5,3876.0,0.82644]
[1761943418082,0.08069754,3876.4,3876.0,0.82644]
[1761943418283,0.08069754,3876.3,3876.0,0.82644]
[1761943418480,0.08069754,3876.2,3876.0,0.82644]
[1761943418782,0.08069754,3876.1,3876.0,0.82644]
[1761943419281,0.2292,3875.6,3875.5,0.13410468]
[1761943420579,0.08070878,3875.6,3875.5,0.36440468]
[1761943420779,0.08070878,3875.6,3875.5,0.82910468]
[1761943421186,0.08070878,3875.6,3875.5,0.36440468]
[1761943421891,0.08070878,3875.6,3875.5,0.82910468]
[1761943422586,0.30550878,3875.6,3875.5,0.13170468]
[1761943422789,0.08070878,3875.6,3875.5,0.81340468]
[1761943423281,0.08070878,3875.6,3875.5,0.34870468]
[1761943423789,0.08070878,3875.6,3875.5,0.81340468]
[1761943425383,0.08070878,3875.6,3875.5,0.34870468]
[1761943425682,0.08070878,3875.6,3875.5,0.81340468]
[1761943429182,3.2078,3876.1,3876.0,0.1291]
[1761943429489,3.84228151,3876.1,3876.0,0.1291]
[1761943429687,0.63448151,3876.1,3876.0,0.3461]
[1761943431191,0.85928151,3876.1,3876.0,0.1291]
[1761943431793,0.63448151,3876.1,3876.0,0.3461]
[1761943432394,0.85928151,3876.1,3875.8,0.46466]
[1761943432592,0.2248,3875.6,3875.5,0.00260468]
[1761943432889,0.85928151,3875.6,3875.5,0.34870468]
[1761943433095,0.63448151,3875.6,3875.5,0.34870468]
[1761943436993,0.6344875,3875.6,3875.5,0.34870468]
[1761943441394,0.6344875,3875.6,3875.5,0.81340468]
[1761943442296,0.6344875,3875.6,3875.5,4.02120468]
[1761943444396,0.08070729,3875.6,3875.5,4.02120468]
[1761943444700,4.5745483,3876.6,3876.0,0.59373]
[1761943444900,0.55528141,3876.5,3876.0,9.52473]
[1761943445089,0.55528141,3876.4,3876.3,0.217]
[1761943445289,1.3667483,3876.9,3876.5,0.3461]
[1761943445494,3.2078,3877.0,3876.8,0.217]
[1761943445687,0.55550717,3876.9,3876.8,0.217]
[1761943447006,0.55550717,3876.9,3876.8,0.68154]
[1761943448305,3.2078,3877.4,3877.0,0.1291]
[1761943448611,0.55458188,3877.3,3877.2,0.217]
[1761943451001,0.55458188,3877.3,3877.2,0.6815]
[1761943451202,3.2078,3877.8,3877.7,0.217]
[1761943451410,3.4288,3877.8,3877.7,0.217]
[1761943452301,3.2078,3877.8,3877.7,0.217]
[1761943453612,3.2078,3878.2,3877.7,0.217]
[1761943453812,0.55328721,3878.1,3877.7,0.217]
[1761943454010,0.55328721,3878.0,3877.7,0.217]
[1761943454215,3.2078,3878.2,3877.7,0.217]
[1761943454514,0.55299024,3878.1,3877.7,0.217]
[1761943454812,0.221,3877.8,3877.7,0.217]
[1761943457612,0.221,3877.8,3877.5,0.1287]
[1761943457807,0.221,3877.8,3877.5,0.59315]
[1761943458109,0.221,3877.8,3877.5,0.59316]
[1761943459407,0.221,3877.8,3877.5,9.51916]
[1761943460606,0.221,3877.8,3877.5,9.0547]
[1761943460807,0.2284,3877.6,3877.5,9.51916]
[1761943461010,3.2078,3878.2,3877.5,9.74276]
[1761943462909,0.2284,3877.1,3876.7,3.2078]
[1761943463202,0.2284,3876.8,3876.5,0.1291]
[1761943463406,0.2284,3876.6,3876.5,0.1291]
[1761943463811,3.2078,3877.4,3876.5,0.3527]
[1761943464010,0.63153608,3877.3,3876.5,0.3527]
[1761943464217,3.2078,3877.4,3876.5,0.3527]
[1761943464512,0.63164571,3877.3,3876.5,0.3527]
[1761943464713,3.2078,3877.0,3876.5,0.3527]
[1761943464901,0.2284,3876.6,3876.3,3.6724]
[1761943465106,0.2284,3876.4,3876.3,3.2078]
[1761943466315,0.2284,3876.4,3876.3,3.6724]
[1761943466616,0.2284,3876.4,3876.3,3.2078]
[1761943468810,0.2284,3876.4,3876.1,8.93]
[1761943469015,0.2284,3876.4,3876.0,0.1291]
[1761943469516,0.2284,3876.4,3876.0,7.73574]
[1761943469812,0.2284,3876.4,3876.1,0.46463]
[1761943470118,0.2284,3876.4,3876.0,0.1291]
[1761943470415,0.2284,3876.4,3876.1,0.46462]
[1761943470613,0.2284,3876.4,3876.0,9.0571]
[1761943471218,3.2078,3876.6,3876.5,0.3552]
[1761943471412,3.4362,3876.6,3876.5,0.1316]
[1761943472010,3.4362,3876.6,3876.0,0.1291]
[1761943472011,0.2284,3876.1,3876.0,0.1291]
[1761943472917,0.2284,3876.1,3875.1,3.2078]
[1761943472918,0.2284,3876.1,3875.7,8.929]
[1761943473714,0.2284,3876.1,3876.0,0.1316]
[1761943475020,3.2078,3876.7,3876.0,0.3552]
[1761943475226,0.63273931,3876.6,3876.0,0.3552]
[1761943475519,0.63273931,3876.5,3876.0,0.3552]
[1761943475721,0.63273931,3876.4,3876.0,0.3552]
[1761943476012,0.63273931,3876.3,3876.0,0.3552]
[1761943476218,3.2078,3876.7,3876.0,0.81984]
[1761943476420,0.63269943,3876.6,3876.0,0.81984]
[1761943476717,0.63269943,3876.5,3876.0,0.81984]
[1761943476918,0.63269943,3876.4,3876.0,0.81984]
[1761943477113,3.2078,3876.7,3876.0,0.81984]
[1761943477313,0.63265196,3876.6,3876.0,0.81984]
[1761943477513,0.63265196,3876.5,3876.0,0.81984]
[1761943477716,0.63265196,3876.4,3876.0,0.81984]
[1761943478026,3.2078,3876.7,3876.1,0.46463]
[1761943478218,0.63260421,3876.6,3876.1,0.46463]
[1761943478423,0.63260421,3876.5,3876.1,0.46463]
[1761943478608,0.63260421,3876.4,3876.1,0.46463]
[1761943478813,3.2078,3876.7,3876.1,0.46463]
[1761943479019,0.63247379,3876.6,3876.2,0.46461]
[1761943479218,0.63247379,3876.5,3876.0,0.1316]
[1761943479418,0.63247381,3876.4,3876.0,0.1316]
[1761943479722,3.2078,3876.7,3876.1,0.46462]
[1761943479917,0.63237466,3876.6,3876.1,0.46462]
[1761943480114,0.63237466,3876.5,3876.1,0.46462]
[1761943480316,3.2078,3876.7,3876.1,0.46462]
[1761943480516,0.63214351,3876.6,3876.1,0.46462]
[1761943480716,0.63214351,3876.5,3876.1,0.46462]
[1761943481016,3.2078,3876.7,3876.1,0.46462]
[1761943481216,0.63213354,3876.6,3876.1,0.46462]
[1761943481519,0.63213354,3876.5,3876.1,0.46463]
[1761943481816,0.55143763,3876.4,3876.0,0.1316]
[1761943482016,0.2284,3876.3,3876.2,0.46461]
[1761943482217,3.2078,3876.7,3876.2,0.69111]
[1761943482411,0.85952064,3876.6,3876.5,0.1406]
[1761943482815,0.85952064,3876.6,3876.2,0.46461]
[1761943483018,0.63242064,3876.5,3876.2,0.46461]
[1761943483216,0.63242063,3876.4,3876.2,0.46461]
[1761943483516,3.2078,3876.7,3876.2,0.46461]
[1761943483717,0.63269092,3876.6,3876.2,0.46461]
[1761943483917,0.63269092,3876.5,3876.2,0.46461]
[1761943484119,0.2271,3876.3,3876.2,0.46461]
[1761943484323,4.06766737,3876.3,3875.6,0.46469]
[1761943484524,0.63276737,3876.2,3875.6,0.46469]
[1761943484822,3.2078,3876.3,3875.6,0.46469]
[1761943485017,3.2078,3876.3,3875.5,0.13420468]
[1761943485018,0.63278197,3876.2,3875.5,0.13420468]
[1761943485225,3.2078,3876.3,3875.8,0.46466]
[1761943485426,0.6328589,3876.2,3875.8,0.46466]
[1761943485627,3.2078,3876.3,3875.8,0.46466]
[1761943485826,0.63284961,3876.2,3875.8,0.46466]
[1761943486124,3.2078,3876.3,3875.7,0.46467]
[1761943486324,0.63295848,3876.2,3875.7,0.46466]
[1761943486524,3.2078,3876.3,3876.2,0.2265]
[1761943486722,3.76003147,3876.3,3876.2,0.2265]
[1761943486924,3.84072855,3876.3,3876.2,0.2265]
[1761943487329,0.2271,3876.1,3876.0,0.1406]
[1761943488333,3.2078,3876.3,3876.2,0.2265]
[1761943488532,3.84096443,3876.3,3876.2,0.2265]
[1761943488832,3.84096443,3876.3,3876.2,0.69112]
[1761943490035,3.84096443,3876.3,3876.2,0.2265]
[1761943492437,0.63316443,3876.3,3876.2,0.2265]
[1761943493528,0.63316443,3876.3,3876.2,0.69112]
[1761943495143,0.63316443,3876.3,3876.2,0.2265]
[1761943495846,0.86026443,3876.3,3876.2,0.2265]
[1761943498447,0.63316443,3876.3,3876.2,0.69112]
[1761943500244,0.08070026,3876.3,3876.2,0.69112]
[1761943500744,0.63550996,3876.3,3876.2,0.69112]
[1761943502742,0.63550996,3876.3,3876.2,0.2265]
[1761943503853,0.2271,3876.1,3876.0,9.0696]
[1761943504046,0.86260996,3876.1,3876.0,9.0696]
[1761943504344,0.86260996,3876.1,3875.5,3.34200468]
[1761943504552,0.63550996,3876.0,3875.9,0.2265]
[1761943505652,0.5548097,3876.0,3875.9,0.2265]
[1761943505949,0.08070086,3876.0,3875.9,0.2265]
[1761943506150,0.86261056,3876.0,3875.9,0.2265]
[1761943508752,0.63551056,3876.0,3875.9,0.69115]
[1761943508957,4.941,3877.6,3875.9,0.69115]
[1761943508958,1.3667483,3876.8,3876.7,0.2265]
[1761943509145,0.2271,3876.8,3876.5,0.1406]
[1761943509346,0.2271,3876.6,3876.5,0.1406]
[1761943510054,0.2271,3876.6,3876.5,0.83168]
[1761943510353,3.2078,3876.8,3876.5,0.83168]
[1761943512250,3.2078,3876.8,3876.5,0.3671]
[1761943512754,3.2078,3876.8,3876.5,0.83167]
[1761943512954,0.2144,3876.6,3876.5,0.1406]
[1761943513144,0.2144,3876.4,3876.0,0.1406]
[1761943513351,0.2144,3876.4,3876.1,6.305]
[1761943513553,3.2078,3876.8,3876.5,0.59338]
[1761943513744,3.2078,3876.8,3876.7,0.68296]
[1761943513948,3.2078,3877.2,3877.1,0.2184]
[1761943514149,3.4222,3877.2,3877.0,0.59332]
[1761943514451,0.2144,3877.1,3877.0,0.1288]
[1761943515957,0.2144,3877.1,3877.0,0.59332]
[1761943516151,3.2078,3877.2,3877.1,0.2184]
[1761943516754,3.2078,3877.2,3877.1,0.68291]
[1761943517958,3.2078,3877.6,3877.1,0.68291]
[1761943518552,3.2078,3877.6,3877.2,0.4645]
[1761943518752,3.2078,3877.6,3877.0,0.1288]
[1761943518753,0.2234,3877.1,3877.0,9.0628]
[1761943519059,0.2234,3877.1,3877.0,0.1288]
[1761943520957,0.85590384,3877.1,3877.0,0.1288]
[1761943521567,1.3667483,3877.9,3877.8,0.2219]
[1761943521860,0.00230055,3878.3,3878.2,0.2219]
[1761943522045,0.22570055,3878.3,3878.2,0.2219]
[1761943522555,0.00230055,3878.3,3878.2,0.2219]
[1761943524453,3.3363,3879.0,3878.6,0.46433]
[1761943524751,3.2078,3879.0,3878.6,0.46433]
[1761943525550,3.21108381,3879.0,3878.9,0.2219]
[1761943527857,0.00328381,3879.0,3878.9,0.2219]
[1761943529257,3.41876773,3879.7,3879.0,0.1355]
[1761943529447,3.41876773,3879.7,3879.0,9.1195]
[1761943529758,3.41876773,3879.7,3879.1,0.46426]
[1761943529957,3.41876773,3879.7,3879.2,0.46426]
[1761943530160,3.2078,3879.7,3879.4,0.46423]
[1761943530352,0.2234,3879.6,3879.5,0.1355]
[1761943530551,0.2234,3879.6,3879.3,0.46424]
[1761943530747,0.2234,3879.6,3879.4,0.46423]
[1761943530949,3.21043423,3879.7,3879.5,0.82161]
[1761943531961,3.43383423,3879.7,3879.6,0.2219]
[1761943532363,0.2234,3879.6,3879.5,0.1355]
[1761943532663,0.2234,3879.6,3879.5,0.3574]
[1761943532860,0.2234,3879.6,3879.2,3.2078]
[1761943532861,0.2234,3879.3,3879.2,3.2078]
[1761943533063,0.2234,3879.1,3878.9,0.46429]
[1761943533462,0.2234,3879.1,3878.9,9.44429]
[1761943533762,0.2234,3879.1,3878.9,0.46429]
[1761943533961,0.2234,3879.1,3878.9,9.44429]
[1761943534961,0.2234,3879.1,3878.9,9.44329]
[1761943535867,0.2234,3879.1,3878.9,9.44229]
[1761943536067,0.2234,3879.1,3878.9,0.46429]
[1761943536364,0.1285,3879.5,3879.1,0.46427]
[1761943536561,0.0704,3880.5,3879.9,0.46417]
[1761943536760,3.2078,3880.6,3880.3,0.2219]
[1761943537768,3.21100789,3880.6,3880.3,0.2219]
[1761943537960,3.21100789,3880.6,3880.0,9.57566]
[1761943537961,0.2234,3880.4,3880.0,9.57566]
[1761943538361,0.2234,3880.4,3880.1,9.44615]
[1761943538562,0.2234,3880.4,3880.2,0.46413]
[1761943539260,0.2234,3880.4,3880.1,8.981]
[1761943540072,3.21100789,3880.6,3880.5,0.3574]
[1761943540364,0.1285,3881.5,3880.8,0.46407]
[1761943540561,0.08059679,3881.4,3880.8,3.67187]
[1761943540765,0.08059679,3881.3,3881.0,0.59924]
[1761943541067,0.1285,3881.5,3881.0,0.59924]
[1761943541274,0.13034736,3881.5,3881.0,0.59924]
[1761943542366,0.13034736,3881.5,3881.1,0.46403]
[1761943542569,0.00184736,3881.5,3881.2,0.46401]
[1761943542866,0.00184736,3881.5,3881.4,0.2343]
[1761943543060,0.00184736,3881.5,3881.4,0.23698856]
[1761943546779,0.22804736,3881.5,3881.4,0.23698856]
[1761943546972,0.22804736,3881.5,3881.4,9.23498856]
[1761943547871,0.22804736,3881.5,3881.4,0.23698856]
[1761943548570,3.2078,3882.2,3882.1,0.2343]
[1761943548771,3.2078,3883.2,3882.1,11.6901]
[1761943548971,3.2078,3883.2,3882.6,0.46385]
[1761943549168,3.2078,3883.8,3882.6,9.50285]
[1761943549575,0.13357938,3883.5,3882.6,9.039]
[1761943549770,0.13357938,3883.5,3882.7,0.46384]
[1761943550080,0.13357938,3883.5,3882.8,0.46383]
[1761943550381,0.13357938,3883.5,3883.0,0.599]
[1761943550577,0.00247938,3883.5,3883.0,0.599]
[1761943550767,0.00247938,3883.5,3883.4,0.2343]
[1761943551466,0.22867938,3883.5,3883.4,0.2343]
[1761943551674,0.2262,3883.1,3883.0,0.1352]
[1761943552070,0.2262,3883.1,3883.0,0.3695]
[1761943552374,0.06417938,3883.5,3883.0,0.8333]
[1761943552576,0.00247938,3883.5,3883.2,0.46377]
[1761943552774,0.2262,3883.3,3883.0,0.1352]
[1761943552972,0.00247938,3883.5,3883.2,0.69808]
[1761943553979,0.00247938,3883.5,3883.4,0.2343]
[1761943556880,0.06417938,3883.5,3882.9,3.2078]
[1761943557084,0.06417938,3883.5,3881.5,0.1352]
[1761943557085,0.2262,3882.6,3881.5,0.1352]
[1761943557382,3.2078,3883.4,3882.5,0.3695]
[1761943557567,3.2078,3883.4,3882.5,0.83336]
[1761943557771,3.2078,3883.4,3882.8,3.67163]
[1761943558180,3.2078,3883.4,3882.8,3.2078]
[1761943558380,3.2078,3883.4,3882.8,3.67163]
[1761943558781,3.2078,3883.4,3882.8,3.2078]
[1761943559473,0.2262,3882.9,3882.8,3.2078]
[1761943560080,0.2262,3882.9,3882.5,0.59906]
[1761943560278,0.2262,3882.6,3882.2,3.2078]
[1761943560472,3.3389,3883.0,3882.5,0.3695]
[1761943560780,3.3389,3883.0,3881.8,3.2078]
[1761943560781,0.2262,3882.6,3881.8,3.2078]
[1761943561075,0.08056888,3882.5,3881.8,9.0638]
[1761943561286,0.08056888,3882.5,3882.4,0.69818]
[1761943561484,3.2078,3883.1,3882.5,0.1352]
[1761943561680,0.21166211,3883.0,3882.5,0.1352]
[1761943561876,0.2262,3882.6,3882.5,0.1352]
[1761943562080,0.30676211,3882.6,3882.5,0.1352]
[1761943562273,0.30676211,3882.6,3882.5,0.3695]
[1761943563484,0.30676211,3882.6,3882.0,0.1352]
[1761943563485,0.2262,3882.1,3882.0,0.59912]
[1761943563679,0.30676211,3882.1,3882.0,0.3695]
[1761943564382,0.08056211,3882.1,3882.0,0.83342]
[1761943564683,0.2262,3882.6,3882.5,0.3695]
[1761943564883,0.30676996,3882.6,3882.2,0.4639]
[1761943565187,0.08056996,3882.5,3882.4,0.2343]
[1761943565392,0.30676996,3882.5,3882.4,0.2343]
[1761943569381,0.30676996,3882.5,3881.8,3.2078]
[1761943569382,0.2262,3882.1,3881.8,3.2078]
[1761943569685,0.08056996,3882.0,3881.8,3.2078]
[1761943569887,0.08056996,3881.9,3881.8,3.4421]
[1761943570082,0.08056996,3882.4,3881.8,3.4421]
[1761943570279,0.08056996,3882.3,3881.8,3.4421]
[1761943570484,3.2078,3882.7,3882.6,0.2204]
[1761943570684,3.28837023,3882.7,3882.6,0.2204]
[1761943570878,3.52257023,3882.7,3882.6,0.2204]
[1761943574089,0.2342,3882.6,3882.5,0.1392]
[1761943574286,0.31477023,3882.6,3882.5,0.60306]
[1761943574587,0.08057023,3882.6,3882.5,0.82346]
[1761943574983,0.08057023,3882.6,3882.5,0.3596]
[1761943576796,0.31477023,3882.6,3882.5,0.3596]
[1761943577303,0.31477023,3882.6,3882.3,0.46389]
[1761943577498,0.08057023,3882.5,3882.4,0.2204]
[1761943578688,0.08057023,3882.5,3882.4,0.68428]
[1761943580303,3.2078,3883.2,3882.4,0.68428]
[1761943580509,0.08056182,3883.1,3882.6,0.46385]
[1761943580709,3.2078,3883.2,3882.6,0.46385]
[1761943580710,0.08056182,3883.0,3882.9,0.2185]
[1761943583213,0.08056182,3883.0,3882.9,0.68232]
[1761943583412,0.08056182,3883.0,3882.9,0.2185]
[1761943583712,0.08056182,3883.0,3882.9,0.68232]
[1761943584811,0.00247938,3883.5,3883.4,0.2185]
[1761943585007,0.08302987,3883.5,3883.4,0.2185]
[1761943587113,0.08302987,3883.5,3883.4,0.68226]
[1761943587617,0.08302987,3883.5,3883.4,0.2185]
[1761943587814,0.08302987,3883.5,3883.4,0.68226]
[1761943589316,0.08302987,3883.5,3883.4,0.2185]
[1761943589614,0.08302987,3883.5,3883.1,0.46379]
[1761943589615,0.35472987,3883.5,3883.1,0.46379]
[1761943589819,0.228,3883.3,3883.2,0.68227]
[1761943590017,0.08055049,3883.3,3883.2,0.68227]
[1761943590720,0.08055049,3883.3,3883.2,3.89007]
[1761943593215,0.00247938,3883.5,3883.4,0.2185]
[1761943593516,0.00247938,3883.5,3883.4,0.68226]
[1761943593719,0.08302533,3883.5,3883.4,0.68226]
[1761943594212,0.08302533,3883.5,3883.4,0.2185]
[1761943594617,0.08302533,3883.5,3883.4,0.68226]
[1761943596416,0.00247938,3883.5,3883.4,0.68226]
[1761943609650,0.00247938,3883.5,3883.4,0.2185]
[1761943609937,0.23147938,3883.5,3883.2,3.2078]
[1761943610140,0.229,3882.8,3882.7,3.2078]
[1761943610335,0.30954058,3882.8,3882.7,3.2078]
[1761943610732,0.229,3882.4,3882.3,3.2078]
[1761943610933,0.30954058,3882.4,3882.3,3.2078]
[1761943614039,0.229,3882.3,3882.2,0.4639]
[1761943614943,0.229,3882.3,3882.2,0.6957]
[1761943615329,0.229,3882.3,3882.2,0.2318]
[1761943615844,0.229,3882.3,3882.2,0.6957]
[1761943616841,0.229,3882.3,3882.2,0.2318]
[1761943617738,0.229,3882.3,3882.2,0.6957]
[1761943617937,0.1307,3883.0,3882.2,3.2078]
[1761943618143,0.08057069,3882.9,3882.3,0.46389]
[1761943618443,0.08057069,3882.8,3882.3,0.46389]
[1761943618643,0.08057069,3882.7,3882.3,0.46389]
[1761943618843,0.08057069,3882.6,3882.3,0.46389]
[1761943619044,0.08057069,3882.5,3882.4,0.46388]
[1761943619244,0.20422664,3882.9,3882.4,0.69568]
[1761943619445,0.08056719,3882.8,3882.4,0.69568]
[1761943619646,0.08056719,3882.8,3882.2,3.2078]
[1761943619647,0.08056719,3882.7,3882.5,0.46386]
[1761943619840,0.08056719,3882.6,3882.5,0.46386]
[1761943620441,0.08056719,3882.6,3882.5,0.83236]
[1761943620641,0.0805653,3882.6,3882.5,0.83236]
[1761943620838,0.229,3882.8,3882.7,0.46384]
[1761943621043,0.0805647,3882.8,3882.7,0.69564]
[1761943624845,3.2078,3883.2,3883.1,0.2318]
[1761943625141,3.28836085,3883.2,3883.1,0.2318]
[1761943625343,3.28836085,3883.2,3883.1,0.69559]
[1761943625537,0.08056085,3883.2,3883.1,0.69559]
[1761943625737,0.00247938,3883.5,3883.0,0.1367]
[1761943625738,0.00247938,3883.5,3883.4,0.69556]
[1761943626046,0.08302706,3883.5,3883.4,0.69556]
[1761943626341,0.08302633,3883.5,3883.4,0.69556]
[1761943626847,0.00247938,3883.5,3883.4,0.69556]
[1761943627846,0.229,3883.1,3883.0,3.3445]
[1761943628037,0.229,3883.1,3883.0,3.2078]
[1761943628947,0.1307,3883.0,3882.5,0.1367]
[1761943629246,0.229,3882.8,3882.7,0.46384]
[1761943629847,3.2078,3883.2,3882.8,0.46382]
[1761943630045,0.0805597,3883.1,3883.0,0.2318]
[1761943631350,0.3095597,3883.1,3883.0,0.2318]
[1761943631549,0.3095597,3883.1,3882.7,0.46384]
[1761943631848,0.0805597,3883.0,3882.9,0.2349]
[1761943632443,0.2224,3883.0,3882.6,0.46384]
[1761943632640,0.00247938,3883.5,3883.1,0.2349]
[1761943632841,0.00247938,3883.5,3883.4,0.2349]
[1761943633348,0.08302868,3883.5,3883.4,0.69866]
[1761943633748,0.08302868,3883.5,3883.4,0.2349]
[1761943633953,0.08302868,3883.5,3883.4,0.69866]
[1761943634752,0.08302868,3883.5,3883.4,0.2349]
[1761943635451,0.0830286,3883.5,3883.4,0.2349]
[1761943636152,0.3054286,3883.5,3883.1,0.46379]
[1761943636350,0.2224,3882.9,3882.8,0.46383]
[1761943636542,0.3029584,3882.9,3882.8,0.46383]
[1761943636749,0.3029584,3882.9,3882.5,0.1367]
[1761943637051,0.2224,3882.8,3882.5,0.1367]
[1761943637355,0.2224,3882.7,3882.6,0.46385]
[1761943637654,0.2224,3882.7,3882.5,0.1367]
[1761943638354,0.2224,3882.7,3882.5,0.60056]
[1761943638556,0.2224,3882.7,3882.6,0.2349]
[1761943639156,0.30296004,3882.7,3882.6,0.2349]
[1761943640957,0.08056004,3882.7,3882.6,0.2349]
[1761943641152,0.08056004,3882.7,3882.6,0.2163]
[1761943642457,0.30376004,3882.7,3882.6,0.2163]
[1761943647659,0.08056004,3882.7,3882.6,0.2163]
[1761943649560,0.30376004,3882.7,3882.6,0.2163]
[1761943649856,0.2232,3882.6,3882.2,0.4639]
[1761943650062,0.08056004,3882.5,3882.2,0.4639]
[1761943650262,3.2078,3882.8,3882.4,0.46387]
[1761943650450,0.08056418,3882.7,3882.4,0.46387]
[1761943650657,0.08056418,3882.6,3882.5,0.3552]
[1761943651059,0.08056418,3882.6,3882.5,0.81906]
[1761943652165,0.08056418,3882.6,3882.5,0.3552]
[1761943652663,0.2232,3882.1,3881.6,4.59666394]
[1761943652864,0.1303,3882.5,3881.6,4.59666394]
[1761943652865,0.08056418,3882.0,3881.9,0.2163]
[1761943653258,0.08056418,3882.4,3881.9,0.2163]
[1761943654163,0.2232,3882.0,3881.6,3.2078]
[1761943654461,0.2232,3882.0,3881.7,0.46396]
[1761943654462,0.08057545,3881.9,3881.7,0.46396]
[1761943654669,0.20489544,3882.3,3881.7,0.46396]
[1761943654858,0.08057806,3882.2,3881.7,0.46396]
[1761943655056,0.08057806,3882.1,3881.6,3.67177]
[1761943655267,0.08057806,3882.0,3881.6,3.67177]
[1761943655456,0.08057806,3881.9,3881.6,3.67177]
[1761943655661,3.2078,3882.4,3881.6,3.67177]
[1761943655869,0.08057807,3882.3,3881.7,0.46396]
[1761943656168,0.08057807,3882.2,3881.6,3.67177]
[1761943656365,0.08057807,3882.1,3881.6,3.67177]
[1761943656569,0.08057807,3882.0,3881.6,3.67177]
[1761943656766,0.08057807,3881.9,3881.6,3.67177]
[1761943656963,3.41449534,3882.4,3881.6,3.67177]
[1761943657158,0.08057849,3882.3,3881.6,3.67177]
[1761943657359,0.08057849,3882.2,3881.6,3.2078]
[1761943657567,0.08057849,3882.1,3881.6,3.2078]
[1761943657767,0.08057849,3882.0,3881.6,3.2078]
[1761943658070,0.08057849,3881.9,3881.6,3.2078]
[1761943658372,3.41449534,3882.4,3881.6,3.67177]
[1761943658559,0.08057959,3882.3,3881.6,3.67177]
[1761943658766,0.08057959,3882.2,3881.6,3.2078]
[1761943658966,0.08057959,3882.1,3881.6,3.2078]
[1761943659175,0.08057959,3882.0,3881.6,3.2078]
[1761943659370,0.08057959,3881.9,3881.6,3.2078]
[1761943659571,3.41449534,3882.4,3881.6,3.2078]
[1761943659770,0.08057959,3882.3,3881.6,3.2078]
[1761943659967,0.08057959,3882.2,3881.6,3.2078]
[1761943660168,0.08057959,3882.1,3881.6,3.2078]
[1761943660369,0.08057959,3882.0,3881.6,3.2078]
[1761943660668,0.08057959,3881.9,3881.8,0.2163]
[1761943662574,0.2182,3881.6,3881.4,0.00268856]
[1761943662874,0.2182,3881.5,3881.4,0.23408856]
[1761943663676,0.29878675,3881.5,3881.4,0.23408856]
[1761943669180,0.36958675,3881.5,3881.4,0.00268856]
[1761943672883,0.84892377,3881.5,3881.4,0.00268856]
[1761943675878,0.84892921,3881.5,3881.4,0.00268856]
[1761943676583,1.3667483,3882.4,3882.0,0.1363]
[1761943676778,0.63086146,3882.3,3882.0,0.1363]
[1761943677083,0.63086146,3882.2,3882.1,0.2314]
[1761943681697,0.55027708,3882.2,3882.1,0.69531]
[1761943681881,3.2078,3883.0,3882.3,0.46388]
[1761943682082,0.63173252,3882.9,3882.3,0.46388]
[1761943682283,3.2078,3883.0,3882.1,3.2078]
[1761943682284,0.63173252,3882.8,3882.7,0.2314]